fUSD/lending_fUSD_20250311
["ID","MTS","AMOUNT","RATE_DAILY","PERIOD"]
[355912003,1741713044919,-500.0,8.885e-05,2]
[355912004,1741713044929,-500.0,8.885e-05,2]
[355912005,1741713044938,-500.0,8.885e-05,2]
[355912006,1741713044952,-695.43,8.885e-05,2]
[355912007,1741713044962,-924.01,8.885e-05,2]
[355912008,1741713044971,-500.69896422,8.885e-05,2]
[355912009,1741713044981,-500.0,8.885e-05,2]
[355912010,1741713044990,-1044.95,8.885e-05,2]
[355912011,1741713044999,-1055.97,8.885e-05,2]
[355912012,1741713045010,-503.16,8.885e-05,2]
[355912013,1741713045021,-567.6,8.885e-05,2]
[355912014,1741713045030,-500.0,8.885e-05,2]
[355912015,1741713045039,-502.31,8.885e-05,2]
[355912016,1741713045048,-500.0,8.885e-05,2]
[355912017,1741713045057,-1363.28,8.885e-05,2]
[355912018,1741713045066,-500.0,8.885e-05,2]
[355912019,1741713045076,-500.0,8.885e-05,2]
[355912020,1741713045085,-500.0,8.885e-05,2]
[355912021,1741713045094,-500.0,8.885e-05,2]
[355912022,1741713045104,-500.0,8.885e-05,2]
[355912023,1741713045114,-500.0,8.885e-05,2]
[355912024,1741713045123,-151.0,8.885e-05,2]
[355912025,1741713045132,-500.0,8.885e-05,2]
[355912026,1741713045141,-500.0,8.885e-05,2]
[355912027,1741713045150,-516.60266349,8.885e-05,2]
[355912028,1741713045329,-500.0,8.885e-05,2]
[355912029,1741713045339,-500.0,8.885e-05,2]
[355912030,1741713045348,-500.0,8.885e-05,2]
[355912031,1741713045357,-1495.8,8.885e-05,2]
[355912032,1741713045367,-500.0,8.885e-05,2]
[355912033,1741713045376,-500.0,8.885e-05,2]
[355912034,1741713045385,-936.79,8.885e-05,2]
[355912035,1741713045394,-500.0,8.885e-05,2]
[355912036,1741713045403,-2556.27,8.885e-05,2]
[355912037,1741713045412,-700.31,8.885e-05,2]
[355912038,1741713045422,-561.43,8.885e-05,2]
[355912039,1741713045431,-500.0,8.885e-05,2]
[355912040,1741713045440,-542.4,8.885e-05,2]
[355912041,1741713045449,-500.0,8.885e-05,2]
[355912042,1741713045459,-1471.36,8.885e-05,2]
[355912043,1741713045469,-500.0,8.885e-05,2]
[355912044,1741713045478,-749.02,8.885e-05,2]
[355912045,1741713045487,-151.0,8.885e-05,2]
[355912046,1741713045496,-199.378383,8.885e-05,2]
[355912047,1741713045505,-500.0,8.885e-05,2]
[355912048,1741713045515,-1571.39,8.885e-05,2]
[355912049,1741713045524,-500.0,8.885e-05,2]
[355912050,1741713045533,-500.0,8.885e-05,2]
[355912051,1741713045543,-500.0,8.885e-05,2]
[355912052,1741713045552,-500.0,8.885e-05,2]
[355912053,1741713045562,-500.0,8.885e-05,2]
[355912054,1741713045572,-500.0,8.885e-05,2]
[355912055,1741713045581,-500.0,8.885e-05,2]
[355912056,1741713045590,-5000.0,8.885e-05,2]
[355912057,1741713045600,-1904.85,8.885e-05,2]
[355912058,1741713045609,-568.73,8.885e-05,2]
[355912059,1741713045619,-506.38328058,8.885e-05,2]
[355912060,1741713045628,-609.24,8.885e-05,2]
[355912061,1741713045637,-679.67,8.885e-05,2]
[355912062,1741713045646,-1435.05,8.885e-05,2]
[355912063,1741713045656,-500.0,8.885e-05,2]
[355912064,1741713045665,-500.0,8.885e-05,2]
[355912065,1741713045674,-500.0,8.885e-05,2]
[355912066,1741713045684,-151.0,8.885e-05,2]
[355912067,1741713045693,-500.0,8.885e-05,2]
[355912068,1741713045702,-500.0,8.885e-05,2]
[355912069,1741713045711,-151.0,8.885e-05,2]
[355912070,1741713045721,-2142.76,8.885e-05,2]
[355912071,1741713045731,-893.42,8.885e-05,2]
[355912072,1741713045741,-500.0,8.885e-05,2]
[355912073,1741713045750,-500.0,8.885e-05,2]
[355912074,1741713045760,-500.0,8.885e-05,2]
[355912075,1741713045770,-500.0,8.885e-05,2]
[355912076,1741713045779,-500.0,8.885e-05,2]
[355912077,1741713045789,-301.430973,8.885e-05,2]
[355912078,1741713045800,-301.430973,8.885e-05,2]
[355912079,1741713045810,-500.0,8.885e-05,2]
[355912080,1741713045820,-567.31,8.885e-05,2]
[355912081,1741713045829,-500.0,8.885e-05,2]
[355912082,1741713045839,-1448.72,8.885e-05,2]
[355912083,1741713045848,-500.0,8.885e-05,2]
[355912084,1741713045865,-971.015557,8.886e-05,2]
[355912085,1741713045875,-971.015557,8.886e-05,2]
[355912086,1741713045884,-151.0,8.886e-05,2]
[355912087,1741713045893,-151.0,8.886e-05,2]
[355912088,1741713045904,-151.0,8.886e-05,2]
[355912089,1741713045914,-151.0,8.886e-05,2]
[355912090,1741713045923,-480.261926,8.886e-05,2]
[355912091,1741713045933,-480.261926,8.886e-05,2]
[355912092,1741713045942,-500.0,8.886e-05,2]
[355912093,1741713045952,-160.37714,8.886e-05,2]
[355912094,1741713045961,-500.085335,8.886e-05,2]
[355912095,1741713045971,-500.085335,8.886e-05,2]
[355912096,1741713045980,-235.189839,8.886e-05,2]
[355912097,1741713045989,-235.189839,8.886e-05,2]
[355912098,1741713045999,-360.155085,8.886e-05,2]
[355912099,1741713046011,-360.155085,8.886e-05,2]
[355912100,1741713046020,-191.588823,8.886e-05,2]
[355912101,1741713046030,-191.588823,8.886e-05,2]
[355912102,1741713046039,-151.0,8.886e-05,2]
[355912103,1741713046048,-151.0,8.886e-05,2]
[355912104,1741713046058,-151.0,8.886e-05,2]
[355912105,1741713046067,-500.0,8.886e-05,2]
[355912106,1741713046077,-151.0,8.886e-05,2]
[355912107,1741713046086,-151.0,8.886e-05,2]
[355912108,1741713046096,-151.0,8.886e-05,2]
[355912110,1741713046105,-151.0,8.886e-05,2]
[355912111,1741713046114,-500.0,8.886e-05,2]
[355912112,1741713046124,-999.99,8.886e-05,2]
[355912115,1741713046134,-1625.56,8.886e-05,2]
[355912117,1741713046144,-500.0,8.886e-05,2]
[355912118,1741713046153,-156.0,8.886e-05,3]
[355912120,1741713046162,-153.065832,8.887e-05,2]
[355912122,1741713046171,-151.0,8.887e-05,2]
[355912124,1741713046181,-151.0,8.887e-05,2]
[355912125,1741713046190,-151.0,8.887e-05,2]
[355912127,1741713046200,-151.0,8.887e-05,2]
[355912129,1741713046209,-492.183339,8.887e-05,2]
[355912131,1741713046218,-318.18924,8.887e-05,2]
[355912133,1741713046228,-318.18924,8.887e-05,2]
[355912136,1741713046238,-492.183339,8.887e-05,2]
[355912139,1741713046247,-254.187922,8.887e-05,2]
[355912141,1741713046258,-254.187922,8.887e-05,2]
[355912143,1741713046268,-226.336259,8.887e-05,2]
[355912145,1741713046277,-226.336259,8.887e-05,2]
[355912147,1741713046286,-151.0,8.887e-05,2]
[355912149,1741713046295,-492.183339,8.899e-05,2]
[355912150,1741713046305,-492.183339,8.899e-05,2]
[355912151,1741713046315,-151.0,8.899e-05,2]
[355912152,1741713046324,-151.0,8.899e-05,2]
[355912154,1741713046333,-151.0,8.899e-05,2]
[355912156,1741713046342,-1847.624,8.908e-05,2]
[355912158,1741713046351,-150.0,8.97e-05,2]
[355912160,1741713046361,-441.8,8.97e-05,2]
[355912162,1741713046372,-150.0,8.97e-05,2]
[355912163,1741713046381,-150.0,8.97e-05,2]
[355912165,1741713046390,-150.0,8.97e-05,2]
[355912167,1741713046399,-440.94,8.97e-05,2]
[355912169,1741713046409,-150.0,8.97e-05,2]
[355912171,1741713046418,-150.0,8.97e-05,2]
[355912173,1741713046427,-441.8,8.97e-05,2]
[355912175,1741713046437,-150.0,8.97e-05,2]
[355912177,1741713046447,-440.94,8.97e-05,2]
[355912179,1741713046456,-440.94,8.97e-05,2]
[355912181,1741713046466,-150.0,8.97e-05,2]
[355912183,1741713046476,-390.46,8.97e-05,2]
[355912185,1741713046485,-225.86,8.97e-05,2]
[355912187,1741713046495,-3107.8553523,8.984e-05,2]
[355912189,1741713046505,-6469.7475301,8.984e-05,2]
[355912190,1741713046515,-262.525589,8.984e-05,2]
[355912191,1741713046524,-236.90549,8.984e-05,2]
[355912192,1741713046532,-236.90549,8.984e-05,2]
[355912193,1741713046542,-318.18924,8.988e-05,2]
[355912194,1741713046551,-492.183339,8.988e-05,2]
[355912195,1741713046560,-318.18924,8.988e-05,2]
[355912196,1741713046569,-492.183339,8.988e-05,2]
[355912197,1741713046578,-254.187922,8.988e-05,2]
[355912198,1741713046587,-254.187922,8.988e-05,2]
[355912199,1741713046597,-183.634227,8.988e-05,2]
[355912200,1741713046606,-183.634227,8.988e-05,2]
[355912201,1741713046616,-500.0,8.988e-05,2]
[355912202,1741713046625,-500.0,8.988e-05,2]
[355912203,1741713046635,-500.0,8.988e-05,2]
[355912204,1741713046644,-500.0,8.988e-05,2]
[355912205,1741713046654,-506.19,8.988e-05,2]
[355912206,1741713046664,-500.0,8.988e-05,2]
[355912207,1741713046673,-500.0,8.988e-05,2]
[355912208,1741713046683,-500.0,8.988e-05,2]
[355912209,1741713046692,-151.0,8.989e-05,2]
[355912210,1741713046702,-151.0,8.989e-05,2]
[355912211,1741713046711,-151.0,8.989e-05,2]
[355912212,1741713046721,-151.0,8.989e-05,2]
[355912213,1741713046730,-151.0,8.989e-05,2]
[355912214,1741713046740,-295.607201,8.989e-05,2]
[355912215,1741713046749,-318.18924,8.989e-05,2]
[355912216,1741713046761,-318.18924,8.989e-05,2]
[355912217,1741713046770,-492.183339,8.989e-05,2]
[355912218,1741713046780,-318.18924,8.989e-05,2]
[355912219,1741713046789,-492.183339,8.989e-05,2]
[355912220,1741713046799,-492.183339,8.989e-05,2]
[355912221,1741713046808,-318.18924,8.989e-05,2]
[355912222,1741713046818,-318.18924,8.989e-05,2]
[355912223,1741713046827,-492.183339,8.989e-05,2]
[355912224,1741713046836,-318.18924,8.989e-05,2]
[355912225,1741713046845,-492.183339,8.989e-05,2]
[355912226,1741713046855,-492.183339,8.989e-05,2]
[355912227,1741713046864,-254.187922,8.989e-05,2]
[355912228,1741713046876,-254.187922,8.989e-05,2]
[355912229,1741713046886,-254.187922,8.989e-05,2]
[355912230,1741713046895,-254.187922,8.989e-05,2]
[355912231,1741713046904,-254.187922,8.989e-05,2]
[355912232,1741713046914,-254.187922,8.989e-05,2]
[355912233,1741713046923,-183.634227,8.989e-05,2]
[355912234,1741713046932,-183.634227,8.989e-05,2]
[355912236,1741713046943,-151.0,8.989e-05,2]
[355912237,1741713046952,-151.0,8.989e-05,2]
[355912239,1741713046963,-151.0,8.989e-05,2]
[355912240,1741713046972,-226.336259,8.989e-05,2]
[355912242,1741713046981,-226.336259,8.989e-05,2]
[355912244,1741713046990,-10000.0,8.989e-05,2]
[355912245,1741713046999,-10000.0,8.989e-05,2]
[355912247,1741713047010,-10000.0,8.989e-05,2]
[355912248,1741713047019,-10000.0,8.989e-05,2]
[355912250,1741713047028,-10000.0,8.989e-05,2]
[355912252,1741713047038,-10000.0,8.989e-05,2]
[355912253,1741713047047,-971.015557,8.989e-05,2]
[355912255,1741713047055,-971.015557,8.989e-05,2]
[355912256,1741713047064,-151.0,8.989e-05,2]
[355912258,1741713047073,-151.0,8.989e-05,2]
[355912260,1741713047082,-151.0,8.989e-05,2]
[355912261,1741713047091,-151.0,8.989e-05,2]
[355912263,1741713047100,-288.579509,8.989e-05,2]
[355912264,1741713047109,-305.116087,8.989e-05,2]
[355912266,1741713047118,-305.116087,8.989e-05,2]
[355912268,1741713047127,-480.261926,8.989e-05,2]
[355912269,1741713047136,-480.261926,8.989e-05,2]
[355912271,1741713047145,-500.0,8.989e-05,2]
[355912272,1741713047154,-500.0,8.989e-05,2]
[355912274,1741713047163,-500.0,8.989e-05,2]
[355912276,1741713047173,-226.28908473,8.989e-05,2]
[355912277,1741713047182,-500.085335,8.989e-05,2]
[355912279,1741713047192,-500.085335,8.989e-05,2]
[355912280,1741713047201,-500.085335,8.989e-05,2]
[355912282,1741713047211,-500.085335,8.989e-05,2]
[355912284,1741713047220,-235.189839,8.989e-05,2]
[355912285,1741713047229,-235.189839,8.989e-05,2]
[355912287,1741713047239,-235.189839,8.989e-05,2]
[355912288,1741713047248,-235.189839,8.989e-05,2]
[355912289,1741713047259,-360.155085,8.989e-05,2]
[355912290,1741713047268,-360.155085,8.989e-05,2]
[355912291,1741713047277,-360.155085,8.989e-05,2]
[355912292,1741713047286,-360.155085,8.989e-05,2]
[355912294,1741713047295,-924.12,8.989e-05,2]
[355912295,1741713047305,-500.0,8.989e-05,2]
[355912297,1741713047314,-2182.37,8.989e-05,2]
[355912298,1741713047325,-500.0,8.989e-05,2]
[355912300,1741713047334,-500.0,8.989e-05,2]
[355912302,1741713047343,-500.0,8.989e-05,2]
[355912303,1741713047352,-191.588823,8.989e-05,2]
[355912304,1741713047360,-191.588823,8.989e-05,2]
[355912305,1741713047370,-191.588823,8.989e-05,2]
[355912306,1741713047379,-191.588823,8.989e-05,2]
[355912307,1741713047388,-500.0,8.989e-05,2]
[355912308,1741713047398,-610.48,8.989e-05,2]
[355912309,1741713047408,-151.0,8.989e-05,2]
[355912310,1741713047417,-1057.3,8.989e-05,2]
[355912311,1741713047426,-151.0,8.989e-05,2]
[355912312,1741713047435,-151.0,8.989e-05,2]
[355912313,1741713047444,-151.0,8.989e-05,2]
[355912314,1741713047453,-260.09459713,8.989e-05,2]
[355912315,1741713047463,-151.0,8.989e-05,2]
[355912316,1741713047472,-151.0,8.989e-05,2]
[355912317,1741713047481,-151.0,8.989e-05,2]
[355912318,1741713047491,-151.0,8.989e-05,2]
[355912319,1741713047500,-151.0,8.989e-05,2]
[355912320,1741713047511,-241.193342,8.989e-05,2]
[355912321,1741713047520,-151.0,8.989e-05,2]
[355912322,1741713047530,-151.0,8.989e-05,2]
[355912323,1741713047540,-151.0,8.989e-05,2]
[355912324,1741713047549,-1841.804383,8.989e-05,2]
[355912325,1741713047558,-1841.804383,8.989e-05,2]
[355912326,1741713047568,-500.0,8.989e-05,2]
[355912327,1741713047578,-500.0,8.989e-05,2]
[355912328,1741713047588,-500.0,8.989e-05,2]
[355912329,1741713047597,-500.0,8.989e-05,2]
[355912330,1741713047607,-605.38209904,8.989e-05,2]
[355912331,1741713047616,-151.0,8.989e-05,2]
[355912332,1741713047625,-151.426151,8.989e-05,2]
[355912333,1741713047634,-151.0,8.989e-05,2]
[355912334,1741713047643,-151.0,8.989e-05,2]
[355912335,1741713047652,-1341.95,8.989e-05,2]
[355912336,1741713047661,-280.757962,8.989e-05,2]
[355912337,1741713047670,-280.757962,8.989e-05,2]
[355912338,1741713047679,-1053.2,8.989e-05,2]
[355912339,1741713047688,-500.0,8.989e-05,2]
[355912340,1741713047698,-500.0,8.989e-05,2]
[355912341,1741713047707,-500.0,8.989e-05,2]
[355912342,1741713047717,-500.0,8.989e-05,2]
[355912343,1741713047726,-500.0,8.989e-05,2]
[355912344,1741713047736,-151.0,8.989e-05,2]
[355912345,1741713047745,-500.0,8.989e-05,2]
[355912346,1741713047755,-500.0,8.989e-05,2]
[355912347,1741713047928,-500.0,8.989e-05,2]
[355912348,1741713047939,-500.0,8.989e-05,2]
[355912349,1741713047948,-500.0,8.989e-05,2]
[355912350,1741713047958,-500.0,8.989e-05,2]
[355912351,1741713047967,-500.0,8.989e-05,2]
[355912352,1741713047977,-320.76692625,8.989e-05,2]
[355912353,1741713047987,-940.126203,8.989e-05,2]
[355912354,1741713047996,-940.126203,8.989e-05,2]
[355912355,1741713048008,-151.0,8.989e-05,2]
[355912356,1741713048017,-164.155506,8.989e-05,2]
[355912357,1741713048027,-164.155506,8.989e-05,2]
[355912358,1741713048036,-151.0,8.989e-05,2]
[355912359,1741713048046,-787.355444,8.989e-05,2]
[355912360,1741713048055,-787.355444,8.989e-05,2]
[355912361,1741713048065,-506.19,8.989e-05,2]
[355912362,1741713048074,-506.19,8.989e-05,2]
[355912363,1741713048083,-506.19,8.989e-05,2]
[355912364,1741713048093,-506.19,8.989e-05,2]
[355912365,1741713048103,-506.19,8.989e-05,2]
[355912366,1741713048112,-506.19,8.989e-05,2]
[355912367,1741713048121,-506.19,8.989e-05,2]
[355912368,1741713048131,-506.19,8.989e-05,2]
[355912369,1741713048140,-506.19,8.989e-05,2]
[355912370,1741713048149,-506.19,8.989e-05,2]
[355912371,1741713048159,-506.19,8.989e-05,2]
[355912372,1741713048168,-506.19,8.989e-05,2]
[355912373,1741713048177,-506.19,8.989e-05,2]
[355912374,1741713048186,-506.19,8.989e-05,2]
[355912375,1741713048196,-506.19,8.989e-05,2]
[355912376,1741713048206,-506.19,8.989e-05,2]
[355912377,1741713048215,-506.19,8.989e-05,2]
[355912378,1741713048224,-506.19,8.989e-05,2]
[355912379,1741713048234,-506.19,8.989e-05,2]
[355912380,1741713048243,-506.19,8.989e-05,2]
[355912381,1741713048253,-506.23,8.989e-05,2]
[355912382,1741713048263,-236.90549,8.989e-05,2]
[355912383,1741713048273,-500.0,8.989e-05,2]
[355912384,1741713048283,-500.0,8.989e-05,2]
[355912385,1741713048293,-500.0,8.989e-05,2]
[355912386,1741713048303,-500.0,8.989e-05,2]
[355912387,1741713048312,-500.0,8.989e-05,2]
[355912388,1741713048322,-500.0,8.989e-05,2]
[355912389,1741713048332,-289.17808138,8.989e-05,2]
[355912390,1741713048342,-236.90549,8.989e-05,2]
[355912391,1741713048352,-250.996343,8.989e-05,2]
[355912392,1741713048362,-250.996343,8.989e-05,2]
[355912393,1741713048372,-413.259874,8.989e-05,2]
[355912394,1741713048382,-500.0,8.989e-05,2]
[355912395,1741713048392,-500.0,8.989e-05,2]
[355912396,1741713048401,-647.88453751,8.989e-05,2]
[355912397,1741713048411,-413.259874,8.989e-05,2]
[355912398,1741713048420,-151.0,8.989e-05,2]
[355912399,1741713048430,-151.0,8.989e-05,2]
[355912400,1741713048440,-301.430973,8.989e-05,2]
[355912401,1741713048450,-301.430973,8.989e-05,2]
[355912402,1741713048459,-500.0,8.989e-05,2]
[355912403,1741713048468,-452.73419483,8.989e-05,2]
[355912404,1741713048478,-151.351,8.99e-05,2]
[355912405,1741713048487,-641.832,8.99e-05,2]
[355912406,1741713048497,-786.0,8.99e-05,2]
[355912407,1741713048508,-274251.19955051,8.99e-05,2]
[355912408,1741713049215,-250.035,8.99e-05,2]
[355912409,1741713049228,-257.9999999,8.99e-05,2]
[355912410,1741713049257,-3321.95662536,8.99e-05,2]
[355912411,1741713049287,-1090.59,8.882e-05,2]
[355912412,1741713049297,-1515.33132892,8.99e-05,2]
[355912413,1741713049627,-724.18045567,8.99e-05,2]
[355912414,1741713049641,-8029.44679923,8.99e-05,2]
[355912415,1741713051792,-448.05111173,8.882e-05,2]
[355912416,1741713051812,-51.94888827,8.882e-05,2]
[355912417,1741713051822,-430.49700249,8.882e-05,2]
[355912418,1741713051857,-69.50299751,8.882e-05,2]
[355912419,1741713051870,-1307.06,8.883e-05,2]
[355912420,1741713051881,-500.0,8.883e-05,2]
[355912421,1741713051891,-1205.11350249,8.884e-05,2]
[355912422,1741713052439,-414.49,8.884e-05,2]
[355912423,1741713052541,-1420.79267651,8.884e-05,2]
[355912424,1741713052551,-3040.396179,8.884e-05,2]
[355912425,1741713052561,-3040.396179,8.885e-05,2]
[355912426,1741713052570,-3040.396179,8.885e-05,2]
[355912427,1741713052579,-3040.396179,8.989e-05,2]
[355912428,1741713052588,-3040.396179,8.989e-05,2]
[355912429,1741713052598,-13602.10707643,8.99e-05,2]
[355912430,1741713052608,-287.595,8.99e-05,2]
[355912431,1741713052651,-335.21331984,8.99e-05,2]
[355912432,1741713052662,-545.7393,8.99e-05,2]
[355912433,1741713052681,-40457.84077879,8.99e-05,2]
[355912434,1741713052692,-1029.8000001,8.99e-05,2]
[355912435,1741713052703,-395.09300076,8.99e-05,2]
[355912436,1741713052714,-722.3513378,8.99e-05,2]
[355912437,1741713052725,-652.48499834,8.99e-05,2]
[355912438,1741713052736,-552.31242,8.99e-05,2]
[355912439,1741713053158,-831.20304981,8.99e-05,2]
[355912440,1741713053169,-8540.67834749,8.99e-05,2]
[355912441,1741713053180,-87194.12484136,8.99e-05,2]
[355912442,1741713053192,-2076.65999993,8.99e-05,2]
[355912443,1741713053204,-1000000.0,8.99e-05,2]
[355912445,1741713054475,-2016.299844,8.99e-05,2]
[355912446,1741713054487,-325.6,8.99e-05,2]
[355912447,1741713056786,353.6987,8.783e-05,2]
[355912448,1741713057274,200.0,8.105e-05,2]
[355912454,1741713131882,12679.3,8.061e-05,2]
[355912456,1741713149929,700.0,8.3e-05,3]
[355912457,1741713152031,1500.0,8.4e-05,3]
[355912458,1741713154154,2300.0,8.5e-05,3]
[355912460,1741713156701,3100.0,8.6e-05,3]
[355912461,1741713158393,3900.0,8.7e-05,3]
[355912462,1741713160491,700.0,8.8e-05,3]
[355912463,1741713185343,2000.0,8.039e-05,2]
[355912467,1741713220657,172.05,6.427e-05,2]
[355912468,1741713228292,530.4538,8.783e-05,2]
[355912469,1741713272087,250.0,8.219e-05,2]
[355912470,1741713281361,168.032746,8.775e-05,2]
[355912475,1741713386803,739.46,8.013e-05,2]
[355912476,1741713444740,1303.4988,8.783e-05,2]
[355912479,1741713600096,150.87762313,8.7e-05,2]
[355912480,1741713655656,216.38,8.219e-05,2]
[355912483,1741713809604,1262.9,7.992e-05,2]
[355912485,1741713827245,800.54,8.027e-05,2]
[355912511,1741713866799,1498.3,8.219e-05,2]
[355912512,1741713925733,176.09,8.003e-05,2]
[355912513,1741713936809,20235.15879346,8e-05,2]
[355912514,1741714011039,1983.35,8.001e-05,2]
[355912515,1741714012735,15038.13666648,8.218e-05,2]
[355912520,1741714056049,166.59,8.239e-05,2]
[355912523,1741714097416,269.85,8.01e-05,2]
[355912524,1741714097645,269.85,8.031e-05,2]
[355912525,1741714097850,269.85,8.052e-05,2]
[355912526,1741714098073,269.85,8.073e-05,2]
[355912527,1741714098300,269.85,8.094e-05,2]
[355912528,1741714098504,269.85,8.115e-05,2]
[355912529,1741714098984,269.85,8.136e-05,2]
[355912530,1741714099132,269.85,8.157e-05,2]
[355912531,1741714099397,269.85,8.178e-05,2]
[355912532,1741714099575,269.85,8.199e-05,2]
[355912533,1741714099834,269.85,8.22e-05,2]
[355912534,1741714100047,269.85,8.241e-05,2]
[355912535,1741714100293,269.85,8.263e-05,2]
[355912536,1741714100515,269.85,8.284e-05,2]
[355912537,1741714100773,269.85,8.305e-05,2]
[355912538,1741714100998,269.85,8.326e-05,2]
[355912539,1741714101209,269.85,8.347e-05,2]
[355912540,1741714101419,269.85,8.368e-05,2]
[355912541,1741714101658,269.85,8.389e-05,2]
[355912542,1741714102794,269.85,8.41e-05,2]
[355912544,1741714116472,1794.6834,8.781e-05,2]
[355912545,1741714120316,1200.0,8.22e-05,2]
[355912548,1741714137220,1000.0,8.219e-05,2]
[355912589,1741714231988,-150.0,8.88e-05,2]
[355912590,1741714231998,-150.0,8.88e-05,2]
[355912591,1741714232007,-550.0,8.88e-05,2]
[355912592,1741714232017,-150.0,8.881e-05,2]
[355912593,1741714232027,-2038.28084135,8.881e-05,2]
[355912594,1741714232039,-88.02915865,8.881e-05,2]
[355912595,1741714232049,-1159.38,8.881e-05,2]
[355912596,1741714232059,-500.0,8.881e-05,2]
[355912597,1741714232070,-500.0,8.881e-05,2]
[355912598,1741714232080,-197.69880135,8.881e-05,2]
[355912599,1741714232092,-724.142,8.881e-05,2]
[355912600,1741714232117,-144.13919865,8.881e-05,2]
[355912601,1741714232127,-500.0,8.881e-05,2]
[355912602,1741714232137,-15.36718134,8.881e-05,2]
[355912603,1741714232182,-484.63281866,8.881e-05,2]
[355912604,1741714232193,-500.0,8.881e-05,2]
[355912605,1741714232202,-500.0,8.881e-05,2]
[355912606,1741714232211,-500.0,8.881e-05,2]
[355912609,1741714232224,-1863.54,8.881e-05,2]
[355912611,1741714232237,-500.0,8.881e-05,2]
[355912612,1741714232246,-500.0,8.881e-05,2]
[355912614,1741714232255,-136.9396174,8.881e-05,2]
[355912617,1741714232286,-383.7224988,8.881e-05,2]
[355912618,1741714232295,-374.1675017,8.881e-05,2]
[355912620,1741714232307,-125.8324983,8.881e-05,2]
[355912622,1741714232316,-384.8419827,8.881e-05,2]
[355912667,1741714237634,-2037.71,8.88e-05,2]
[355912668,1741714237644,-2116.4080173,8.881e-05,2]
[355912669,1741714237653,-613.72,8.881e-05,2]
[355912670,1741714237663,-500.0,8.881e-05,2]
[355912671,1741714237672,-1341.28,8.881e-05,2]
[355912672,1741714237681,-500.0,8.881e-05,2]
[355912673,1741714237690,-500.0,8.881e-05,2]
[355912674,1741714237700,-500.0,8.881e-05,2]
[355912675,1741714237709,-500.0,8.881e-05,2]
[355912676,1741714237719,-185.8819827,8.881e-05,2]
[355912677,1741714237731,-314.1180173,8.881e-05,2]
[355912678,1741714237740,-490.7819827,8.881e-05,2]
[355912679,1741714237751,-9.2180173,8.881e-05,2]
[355912680,1741714237760,-500.0,8.881e-05,2]
[355912681,1741714237769,-500.0,8.881e-05,2]
[355912682,1741714237779,-500.0,8.881e-05,2]
[355912683,1741714237788,-500.0,8.881e-05,2]
[355912684,1741714237799,-500.0,8.881e-05,2]
[355912685,1741714237808,-522.74,8.881e-05,2]
[355912686,1741714237817,-500.0,8.881e-05,2]
[355912687,1741714237827,-500.0,8.881e-05,2]
[355912688,1741714237836,-943.1819827,8.881e-05,2]
[355912689,1741714237867,-1228.2480173,8.881e-05,2]
[355912690,1741714237878,-500.0,8.881e-05,2]
[355912691,1741714237887,-500.0,8.881e-05,2]
[355912692,1741714237897,-2198.96,8.881e-05,2]
[355912693,1741714237907,-500.0,8.881e-05,2]
[355912694,1741714237916,-500.0,8.881e-05,2]
[355912695,1741714237926,-1398.64,8.881e-05,2]
[355912696,1741714237935,-500.0,8.881e-05,2]
[355912697,1741714237944,-500.0,8.881e-05,2]
[355912698,1741714237954,-500.0,8.881e-05,2]
[355912699,1741714237963,-500.0,8.881e-05,2]
[355912700,1741714237973,-500.0,8.881e-05,2]
[355912701,1741714237982,-493.59320958,8.881e-05,2]
[355912702,1741714237991,-783.76,8.881e-05,2]
[355912703,1741714238000,-500.0,8.881e-05,2]
[355912704,1741714238010,-500.0,8.881e-05,2]
[355912705,1741714238020,-500.0,8.881e-05,2]
[355912706,1741714238029,-218.76674662,8.881e-05,2]
[355912707,1741714238039,-727.91,8.881e-05,2]
[355912708,1741714238048,-500.0,8.881e-05,2]
[355912709,1741714238058,-500.0,8.881e-05,2]
[355912711,1741714238067,-500.0,8.881e-05,2]